[Event "British Championship 2024"]
[Site "Hull"]
[Date "2024.08.01"]
[Round "6.20"]
[White "Eggleston, David J"]
[Black "Southcott-Moyers, Indy"]
[Result "1-0"]
[Annotator "RC"]
[ECO "C54"]
[WhiteElo "2335"]
[BlackElo "2182"]
[PlyCount "97"]
[EventDate "2024.07.31"]
[EventCountry "GBR"]
[SourceTitle "playchess.com"]
[Source "ChessBase"]
[SourceQuality "1"]
[TimeControl "40/5400+30:1800+30"]

1. e4 {[%emt 0:02:10]} e5 {[%emt 0:00:03]} 2. Nf3 {[%emt 0:00:10]} Nc6 {[%emt 0:00:03]} 3. Bc4 {[%emt 0:00:10]} Bc5 {[%emt 0:00:04]} 4. c3 {[%emt 0:00:10]} Nf6 {[%emt 0:00:04]} 5. d3 {[%emt 0:00:05]} d6 {[%emt 0:00:04]} 6. O-O {[%emt 0:00:40]} O-O {[%emt 0:03:55]} 7. h3 {[%emt 0:00:38]} h6 {[%emt 0:02:38]} 8. Re1 {[%emt 0:00:26]} a5 {[%emt 0:05:29]} 9. Nbd2 {[%emt 0:00:32]} Be6 {[%emt 0:01:35]} 10. Bb5 {[%emt 0:01:47]} Qb8 {[%emt 0:04:34]} 11. Nf1 {[%emt 0:03:37]} Qa7 {[%emt 0:02:50]} 12. Qe2 {[%emt 0:01:00]} Ne7 {[%emt 0:07:46]} 13. Nh4 {[%emt 0:04:12]} c6 {[%emt 0:09:20]} 14. Ba4 {[%emt 0:01:38]} Ng6 {[%emt 0:02:31]} 15. Nf5 {[%emt 0:01:27]} b5 {[%emt 0:05:57]} 16. Bc2 {[%emt 0:00:25]} Ne7 {[%emt 0:05:07]} 17. N1g3 {[%emt 0:02:20]} Nxf5 {[%emt 0:05:58]} 18. exf5 {[%emt 0:06:25]} Bd7 {[%emt 0:01:11]} 19. Rf1 {[%emt 0:02:11]} a4 {[%emt 0:01:13]} 20. Bd2 {[%emt 0:02:01]} Rae8 {[%emt 0:02:13]} 21. b4 {[%emt 0:08:54]} Bb6 {[%emt 0:00:29]} 22. Ne4 {[%emt 0:03:25]} Nxe4 {[%emt 0:02:45]} 23. dxe4 {[%emt 0:00:35]} f6 {[%emt 0:00:49]} 24. Rad1 {[%emt 0:03:07]} Rd8 {[%emt 0:01:24]} 25. Bc1 {[%emt 0:04:37]} Be8 {[%emt 0:01:51]} 26. Rd3 {[%emt 0:05:05]} Bf7 {[%emt 0:04:26]} 27. Rg3 {[%emt 0:01:06]} Bc4 {[%emt 0:04:16]} 28. Bd3 {[%emt 0:00:43]} Bxd3 {[%emt 0:00:07]} 29. Qxd3 {[%emt 0:00:08]} Kh8 {[%emt 0:00:23]} 30. c4 {[%emt 0:00:42]} bxc4 {[%emt 0:01:56]} 31. Qxc4 {[%emt 0:01:40]} d5 {[%emt 0:01:11]} 32. Qe2 {[%emt 0:09:35]} Rd7 {[%emt 0:01:50]} 33. Qh5 {[%emt 0:04:42]} Qb8 {[%emt 0:03:41]} 34. exd5 {[%emt 0:01:36]} cxd5 {[%emt 0:00:17]} 35. Rg6 {[%emt 0:00:07]} Rff7 {[%emt 0:00:28]} 36. Qh4 {[%emt 0:02:55]} Qd8 {[%emt 0:01:52]} 37. Bd2 {[%emt 0:00:30]} Bd4 {[%emt 0:05:11]} 38. Rc1 {[%emt 0:01:15]} e4 {[%emt 0:00:34]} 39. Rc6 {[%emt 0:04:39]} Rde7 {[%emt 0:04:55]} 40. b5 {[%emt 0:05:32]} e3 {[%emt 0:04:51]} 41. Qxd4 {[%emt 0:31:05]} Re4 {[%emt 0:34:23]} 42. Qd3 {[%emt 0:00:49]} exd2 {[%emt 0:00:00]} 43. Qxd2 {[%emt 0:00:00]} Qb8 {[%emt 0:00:00]} 44. b6 {[%emt 0:00:00]} Rb7 {[%emt 0:00:00]} 45. g3 {[%emt 0:00:00]} Rxb6 {[%emt 0:00:00]} 46. Rxh6+ {[%emt 0:00:00]} gxh6 {[%emt 0:00:00]} 47. Qxh6+ {[%emt 0:00:00]} Kg8 {[%emt 0:00:00]} 48. Qg6+ {[%emt 0:00:00]} Kh8 {[%emt 0:00:00]} 49. Qxf6+ {[%emt 0:00:00]} 1-0

[Event "British Championship 2024"]
[Site "Hull"]
[Date "2024.08.01"]
[Round "6.21"]
[White "Wu, Li"]
[Black "Hryshchenko, Kamila"]
[Result "1-0"]
[Annotator "RC"]
[ECO "B06"]
[WhiteElo "2328"]
[BlackElo "2161"]
[PlyCount "91"]
[EventDate "2024.07.31"]
[EventCountry "GBR"]
[SourceTitle "playchess.com"]
[Source "ChessBase"]
[SourceQuality "1"]
[TimeControl "40/5400+30:1800+30"]

1. d4 {[%emt 0:00:02]} g6 {[%emt 0:01:54]} 2. e4 {[%emt 0:00:12]} d6 {[%emt 0:00:05]} 3. Nf3 {[%emt 0:00:20]} Bg7 {[%emt 0:00:10]} 4. Be2 {[%emt 0:00:36]} Nd7 {[%emt 0:01:17]} 5. O-O {[%emt 0:00:45]} h6 {[%emt 0:00:35]} 6. a4 {[%emt 0:01:40]} c6 {[%emt 0:00:49]} 7. Nc3 {[%emt 0:01:15]} e5 {[%emt 0:02:55]} 8. dxe5 {[%emt 0:04:38]} dxe5 {[%emt 0:00:08]} 9. Bc4 {[%emt 0:05:42]} Ngf6 {[%emt 0:02:45]} 10. h3 {[%emt 0:01:09]} O-O {[%emt 0:00:16]} 11. Qd6 {[%emt 0:02:08]} Re8 {[%emt 0:05:07]} 12. Be3 {[%emt 0:02:23]} Qe7 {[%emt 0:04:28]} 13. Qxe7 {[%emt 0:01:35]} Rxe7 {[%emt 0:00:08]} 14. a5 {[%emt 0:00:30]} Ne8 {[%emt 0:05:06]} 15. Rfd1 {[%emt 0:00:45]} Bf8 {[%emt 0:02:08]} 16. b4 {[%emt 0:01:42]} Nc7 {[%emt 0:04:11]} 17. Na4 {[%emt 0:08:41]} Re8 {[%emt 0:02:05]} 18. Rab1 {[%emt 0:02:20]} Nf6 {[%emt 0:09:41]} 19. Nd2 {[%emt 0:07:56]} Be6 {[%emt 0:04:22]} 20. f3 {[%emt 0:12:58]} Red8 {[%emt 0:09:15]} 21. Bxe6 {[%emt 0:00:15]} Nxe6 {[%emt 0:00:16]} 22. c3 {[%emt 0:00:05]} b5 {[%emt 0:04:47]} 23. axb6 {[%emt 0:01:49]} axb6 {[%emt 0:00:07]} 24. Nxb6 {[%emt 0:00:08]} Ra3 {[%emt 0:00:15]} 25. Ndc4 {[%emt 0:08:09]} Rxd1+ {[%emt 0:02:09]} 26. Rxd1 {[%emt 0:00:04]} Rxc3 {[%emt 0:00:14]} 27. Bd2 {[%emt 0:02:02]} Rb3 {[%emt 0:18:32]} 28. Na5 {[%emt 0:01:23]} Rd3 {[%emt 0:05:28]} 29. Nxc6 {[%emt 0:00:07]} Nd8 {[%emt 0:03:50]} 30. Nxe5 {[%emt 0:04:25]} Rd4 {[%emt 0:12:27]} 31. Kf2 {[%emt 0:03:15]} Bxb4 {[%emt 0:00:00]} 32. Ke2 {[%emt 0:27:31]} Ne6 {[%emt 0:01:00]} 33. Bxh6 {[%emt 0:00:30]} Nxe4 {[%emt 0:00:30]} 34. Rxd4 {[%emt 0:00:30]} Ng3+ {[%emt 0:00:30]} 35. Kd3 {[%emt 0:00:00]} Nxd4 {[%emt 0:00:30]} 36. Nd5 {[%emt 0:01:00]} Kh7 {[%emt 0:00:00]} 37. Nxb4 {[%emt 0:00:00]} f6 {[%emt 0:00:00]} 38. Nc4 {[%emt 0:00:00]} Nxf3 {[%emt 0:00:00]} 39. Bd2 {[%emt 0:00:00]} Nxd2 {[%emt 0:00:00]} 40. Nxd2 {[%emt 0:00:00]} Nh5 {[%emt 0:00:00]} 41. Ke4 {[%emt 0:16:59]} Kh6 {[%emt 0:30:43]} 42. Nd5 {[%emt 0:00:32]} f5+ {[%emt 0:00:00]} 43. Ke5 {[%emt 0:00:00]} Ng3 {[%emt 0:00:00]} 44. Nf3 {[%emt 0:00:00]} Kh5 {[%emt 0:00:00]} 45. Nf4+ {[%emt 0:00:00]} Kh6 {[%emt 0:00:00]} 46. Nh4 {[%emt 0:00:00]} 1-0

[Event "British Championship 2024"]
[Site "Hull"]
[Date "2024.08.01"]
[Round "6.22"]
[White "Sachdeva, Ronit"]
[Black "Davies, Nigel R"]
[Result "1/2-1/2"]
[Annotator "RC"]
[ECO "E08"]
[WhiteElo "1907"]
[BlackElo "2325"]
[PlyCount "47"]
[EventDate "2024.07.31"]
[EventCountry "GBR"]
[SourceTitle "playchess.com"]
[Source "ChessBase"]
[SourceQuality "1"]
[TimeControl "40/5400+30:1800+30"]

1. d4 {[%emt 0:00:04]} Nf6 {[%emt 0:00:10]} 2. c4 {[%emt 0:00:04]} e6 {[%emt 0:00:24]} 3. g3 {[%emt 0:00:06]} d5 {[%emt 0:01:30]} 4. Bg2 {[%emt 0:00:07]} Be7 {[%emt 0:00:08]} 5. Nf3 {[%emt 0:00:06]} O-O {[%emt 0:00:07]} 6. O-O {[%emt 0:00:02]} Nbd7 {[%emt 0:00:24]} 7. Qc2 {[%emt 0:00:23]} a5 {[%emt 0:00:10]} 8. Nbd2 {[%emt 0:02:19]} c5 {[%emt 0:00:11]} 9. Rd1 {[%emt 0:04:24]} Qb6 {[%emt 0:16:01]} 10. e3 {[%emt 0:08:14]} cxd4 {[%emt 0:07:24]} 11. Nxd4 {[%emt 0:05:22]} Ne5 {[%emt 0:03:26]} 12. cxd5 {[%emt 0:09:21]} exd5 {[%emt 0:06:31]} 13. N2f3 {[%emt 0:08:37]} Nc6 {[%emt 0:06:07]} 14. Bd2 {[%emt 0:10:03]} Ne4 {[%emt 0:00:23]} 15. Be1 {[%emt 0:01:04]} Bg4 {[%emt 0:01:36]} 16. h3 {[%emt 0:09:13]} Nxd4 {[%emt 0:00:43]} 17. Rxd4 {[%emt 0:01:57]} Be6 {[%emt 0:00:11]} 18. Rdd1 {[%emt 0:02:32]} Rfc8 {[%emt 0:01:48]} 19. Qb3 {[%emt 0:03:35]} Qxb3 {[%emt 0:03:18]} 20. axb3 {[%emt 0:00:01]} Bf6 {[%emt 0:00:51]} 21. Nd4 {[%emt 0:04:19]} Bxd4 {[%emt 0:00:14]} 22. Rxd4 {[%emt 0:00:46]} Rc2 {[%emt 0:01:13]} 23. Bxe4 {[%emt 0:05:52]} dxe4 {[%emt 0:00:06]} 24. Rxa5 {[%emt 0:01:21]} 1/2-1/2

[Event "British Championship 2024"]
[Site "Hull"]
[Date "2024.08.01"]
[Round "6.23"]
[White "Mirzoeva, Elmira"]
[Black "Kanyamarala, Trisha"]
[Result "1/2-1/2"]
[Annotator "RC"]
[ECO "E51"]
[WhiteElo "2260"]
[BlackElo "2219"]
[PlyCount "82"]
[EventDate "2024.07.31"]
[EventCountry "GBR"]
[SourceTitle "playchess.com"]
[Source "ChessBase"]
[SourceQuality "1"]
[TimeControl "40/5400+30:1800+30"]

1. d4 {[%emt 0:00:03]} Nf6 {[%emt 0:00:10]} 2. c4 {[%emt 0:00:09]} e6 {[%emt 0:00:07]} 3. Nf3 {[%emt 0:00:17]} d5 {[%emt 0:00:09]} 4. Nc3 {[%emt 0:00:27]} Bb4 {[%emt 0:00:12]} 5. e3 {[%emt 0:00:23]} O-O {[%emt 0:01:42]} 6. Bd2 {[%emt 0:00:21]} c5 {[%emt 0:09:50]} 7. a3 {[%emt 0:01:31]} Bxc3 {[%emt 0:00:52]} 8. Bxc3 {[%emt 0:00:11]} Ne4 {[%emt 0:01:18]} 9. Qc2 {[%emt 0:02:56]} Nxc3 {[%emt 0:01:41]} 10. bxc3 {[%emt 0:02:04]} cxd4 {[%emt 0:08:20]} 11. cxd4 {[%emt 0:01:05]} Nc6 {[%emt 0:09:41]} 12. cxd5 {[%emt 0:05:51]} Qa5+ {[%emt 0:01:54]} 13. Qd2 {[%emt 0:04:23]} Qxd5 {[%emt 0:01:11]} 14. Bd3 {[%emt 0:05:17]} Rd8 {[%emt 0:05:06]} 15. O-O {[%emt 0:07:45]} Qd6 {[%emt 0:05:33]} 16. Ng5 {[%emt 0:16:09]} h6 {[%emt 0:06:45]} 17. Ne4 {[%emt 0:01:08]} Qe7 {[%emt 0:01:25]} 18. f4 {[%emt 0:05:28]} b6 {[%emt 0:04:05]} 19. Rac1 {[%emt 0:02:58]} Bb7 {[%emt 0:02:54]} 20. Rc3 {[%emt 0:08:07]} Na5 {[%emt 0:08:24]} 21. Rfc1 {[%emt 0:06:54]} Rac8 {[%emt 0:02:26]} 22. Qc2 {[%emt 0:01:50]} f5 {[%emt 0:04:38]} 23. Nd2 {[%emt 0:02:09]} Rxc3 {[%emt 0:01:52]} 24. Qxc3 {[%emt 0:00:02]} Qd6 {[%emt 0:01:44]} 25. Nf3 {[%emt 0:05:39]} Rc8 {[%emt 0:02:50]} 26. Qb2 {[%emt 0:00:11]} Rxc1+ {[%emt 0:00:50]} 27. Qxc1 {[%emt 0:00:02]} Bxf3 {[%emt 0:00:14]} 28. gxf3 {[%emt 0:00:54]} Qd5 {[%emt 0:00:40]} 29. Kf2 {[%emt 0:05:39]} Qa2+ {[%emt 0:07:25]} 30. Be2 {[%emt 0:00:25]} Kh7 {[%emt 0:01:42]} 31. Qc3 {[%emt 0:08:07]} Kg6 {[%emt 0:06:54]} 32. e4 {[%emt 0:00:52]} Qb3 {[%emt 0:02:23]} 33. Qxb3 {[%emt 0:05:39]} Nxb3 {[%emt 0:00:01]} 34. Ke3 {[%emt 0:00:05]} Kf6 {[%emt 0:00:33]} 35. Bb5 {[%emt 0:01:52]} g5 {[%emt 0:00:47]} 36. e5+ {[%emt 0:00:43]} Ke7 {[%emt 0:00:18]} 37. fxg5 {[%emt 0:00:33]} hxg5 {[%emt 0:00:07]} 38. Bc4 {[%emt 0:00:37]} Na5 {[%emt 0:00:31]} 39. Bb5 {[%emt 0:00:27]} Nb3 {[%emt 0:00:33]} 40. Ba4 {[%emt 0:00:37]} Na5 {[%emt 0:00:22]} 41. Bb5 {[%emt 0:11:10]} Nb3 {[%emt 0:05:15]} 1/2-1/2

[Event "British Championship 2024"]
[Site "Hull"]
[Date "2024.08.01"]
[Round "6.24"]
[White "Badacsonyi, Stanley"]
[Black "Taylor, Adam A"]
[Result "1/2-1/2"]
[Annotator "RC"]
[ECO "A37"]
[WhiteElo "2132"]
[BlackElo "2281"]
[PlyCount "48"]
[EventDate "2024.07.31"]
[EventCountry "GBR"]
[SourceTitle "playchess.com"]
[Source "ChessBase"]
[SourceQuality "1"]
[TimeControl "40/5400+30:1800+30"]

1. Nf3 {[%emt 0:00:01]} c5 {[%emt 0:13:26]} 2. g3 {[%emt 0:00:24]} Nc6 {[%emt 0:01:22]} 3. Bg2 {[%emt 0:00:09]} g6 {[%emt 0:01:10]} 4. O-O {[%emt 0:00:11]} Bg7 {[%emt 0:00:04]} 5. d3 {[%emt 0:00:49]} e6 {[%emt 0:03:02]} 6. c4 {[%emt 0:01:29]} Nge7 {[%emt 0:00:13]} 7. Nc3 {[%emt 0:00:37]} O-O {[%emt 0:02:09]} 8. Rb1 {[%emt 0:00:14]} d5 {[%emt 0:02:29]} 9. Bd2 {[%emt 0:03:33]} b6 {[%emt 0:00:43]} 10. a3 {[%emt 0:05:13]} dxc4 {[%emt 0:06:57]} 11. dxc4 {[%emt 0:00:52]} Na5 {[%emt 0:00:58]} 12. b3 {[%emt 0:00:31]} Bb7 {[%emt 0:02:16]} 13. Qc1 {[%emt 0:02:26]} Nf5 {[%emt 0:10:47]} 14. Rd1 {[%emt 0:10:12]} Qe7 {[%emt 0:02:44]} 15. e3 {[%emt 0:09:18]} Rfd8 {[%emt 0:04:30]} 16. Qc2 {[%emt 0:00:53]} Bc6 {[%emt 0:17:08]} 17. Ne2 {[%emt 0:13:07]} Qb7 {[%emt 0:01:43]} 18. Ne1 {[%emt 0:00:07]} Bxg2 {[%emt 0:00:37]} 19. Nxg2 {[%emt 0:00:07]} Nc6 {[%emt 0:04:38]} 20. Bc3 {[%emt 0:01:34]} Ne5 {[%emt 0:02:27]} 21. Ne1 {[%emt 0:01:24]} Nf3+ {[%emt 0:06:42]} 22. Nxf3 {[%emt 0:00:09]} Qxf3 {[%emt 0:00:24]} 23. Bxg7 {[%emt 0:00:19]} Kxg7 {[%emt 0:00:31]} 24. Nc3 {[%emt 0:00:50]} h5 {[%emt 0:03:06]} 1/2-1/2

[Event "British Championship 2024"]
[Site "Hull"]
[Date "2024.08.01"]
[Round "6.25"]
[White "Pein, Jonathan"]
[Black "Starley, Robert"]
[Result "1/2-1/2"]
[Annotator "RC"]
[ECO "C30"]
[WhiteElo "2279"]
[BlackElo "2017"]
[PlyCount "73"]
[EventDate "2024.07.31"]
[EventCountry "GBR"]
[SourceTitle "playchess.com"]
[Source "ChessBase"]
[SourceQuality "1"]
[TimeControl "40/5400+30:1800+30"]

1. e4 {[%emt 0:00:03]} e5 {[%emt 0:00:03]} 2. Nc3 {[%emt 0:00:07]} Nc6 {[%emt 0:00:06]} 3. f4 {[%emt 0:00:30]} d6 {[%emt 0:00:35]} 4. Nf3 {[%emt 0:00:34]} Nf6 {[%emt 0:00:57]} 5. Bb5 {[%emt 0:00:05]} exf4 {[%emt 0:02:44]} 6. d4 {[%emt 0:02:59]} Bd7 {[%emt 0:00:50]} 7. Bxf4 {[%emt 0:00:55]} Be7 {[%emt 0:01:16]} 8. Qe2 {[%emt 0:03:35]} O-O {[%emt 0:00:54]} 9. O-O-O {[%emt 0:00:08]} a6 {[%emt 0:00:56]} 10. Bxc6 {[%emt 0:05:19]} bxc6 {[%emt 0:01:09]} 11. Rhg1 {[%emt 0:13:00]} Re8 {[%emt 0:03:02]} 12. g4 {[%emt 0:03:04]} Bf8 {[%emt 0:02:28]} 13. Bg5 {[%emt 0:03:08]} Be7 {[%emt 0:01:22]} 14. h4 {[%emt 0:01:36]} Nxg4 {[%emt 0:01:39]} 15. Rdf1 {[%emt 0:05:57]} h5 {[%emt 0:01:58]} 16. Qc4 {[%emt 0:07:45]} Be6 {[%emt 0:02:24]} 17. Qd3 {[%emt 0:15:15]} g6 {[%emt 0:02:46]} 18. Ne2 {[%emt 0:00:36]} d5 {[%emt 0:03:31]} 19. e5 {[%emt 0:03:20]} a5 {[%emt 0:03:17]} 20. Ng3 {[%emt 0:01:45]} Kg7 {[%emt 0:02:52]} 21. Bxe7 {[%emt 0:06:47]} Qxe7 {[%emt 0:00:24]} 22. Ng5 {[%emt 0:00:12]} Rh8 {[%emt 0:00:44]} 23. Rf4 {[%emt 0:02:15]} Raf8 {[%emt 0:03:52]} 24. Rgf1 {[%emt 0:01:15]} Qd7 {[%emt 0:03:33]} 25. Qc3 {[%emt 0:16:21]} a4 {[%emt 0:02:11]} 26. a3 {[%emt 0:00:29]} f5 {[%emt 0:03:59]} 27. exf6+ {[%emt 0:02:11]} Rxf6 {[%emt 0:00:16]} 28. Rxf6 {[%emt 0:00:32]} Nxf6 {[%emt 0:00:10]} 29. Qe3 {[%emt 0:00:40]} Re8 {[%emt 0:02:04]} 30. Qf4 {[%emt 0:04:31]} Ng4 {[%emt 0:01:26]} 31. Nxe6+ {[%emt 0:00:24]} Qxe6 {[%emt 0:00:38]} 32. Qxc7+ {[%emt 0:00:23]} Re7 {[%emt 0:00:25]} 33. Qb8 {[%emt 0:00:29]} Re8 {[%emt 0:01:18]} 34. Qc7+ {[%emt 0:00:20]} Re7 {[%emt 0:00:08]} 35. Qb8 {[%emt 0:00:44]} Re8 {[%emt 0:00:21]} 36. Qa7+ {[%emt 0:00:35]} Re7 {[%emt 0:00:07]} 37. Qb8 {[%emt 0:00:32]} 1/2-1/2

[Event "British Championship 2024"]
[Site "Hull"]
[Date "2024.08.01"]
[Round "6.26"]
[White "Lewis, Andrew P"]
[Black "Rathbone-Jones, Ifan"]
[Result "1/2-1/2"]
[Annotator "RC"]
[ECO "A14"]
[WhiteElo "2272"]
[BlackElo "2014"]
[PlyCount "44"]
[EventDate "2024.07.31"]
[EventCountry "GBR"]
[SourceTitle "playchess.com"]
[Source "ChessBase"]
[SourceQuality "1"]
[TimeControl "40/5400+30:1800+30"]

1. Nf3 {[%emt 0:00:05]} Nf6 {[%emt 0:00:11]} 2. c4 {[%emt 0:00:11]} e6 {[%emt 0:00:07]} 3. g3 {[%emt 0:00:10]} d5 {[%emt 0:01:42]} 4. Bg2 {[%emt 0:00:16]} Be7 {[%emt 0:00:21]} 5. O-O {[%emt 0:00:21]} O-O {[%emt 0:00:11]} 6. b3 {[%emt 0:00:28]} c5 {[%emt 0:02:48]} 7. Bb2 {[%emt 0:01:33]} Nc6 {[%emt 0:01:06]} 8. e3 {[%emt 0:00:55]} Qc7 {[%emt 0:01:58]} 9. Nc3 {[%emt 0:07:23]} Rd8 {[%emt 0:02:06]} 10. cxd5 {[%emt 0:13:38]} exd5 {[%emt 0:08:24]} 11. d4 {[%emt 0:00:50]} b6 {[%emt 0:05:40]} 12. Rc1 {[%emt 0:12:14]} Ba6 {[%emt 0:05:30]} 13. Re1 {[%emt 0:01:02]} Rac8 {[%emt 0:00:56]} 14. a3 {[%emt 0:08:21]} Kh8 {[%emt 0:10:42]} 15. Ng5 {[%emt 0:12:09]} Kg8 {[%emt 0:03:27]} 16. dxc5 {[%emt 0:02:14]} bxc5 {[%emt 0:00:41]} 17. Na4 {[%emt 0:06:07]} Ne5 {[%emt 0:01:35]} 18. Nxc5 {[%emt 0:14:17]} Bxc5 {[%emt 0:00:10]} 19. b4 {[%emt 0:01:40]} Nd3 {[%emt 0:00:11]} 20. Rxc5 {[%emt 0:01:40]} Nxc5 {[%emt 0:02:06]} 21. bxc5 {[%emt 0:00:32]} Qe7 {[%emt 0:09:31]} 22. Bd4 {[%emt 0:02:30]} h6 {[%emt 0:08:47]} 1/2-1/2

[Event "British Championship 2024"]
[Site "Hull"]
[Date "2024.08.01"]
[Round "6.27"]
[White "Khoury, Theo"]
[Black "Hobson, Kenneth"]
[Result "1-0"]
[Annotator "RC"]
[ECO "B00"]
[WhiteElo "2057"]
[BlackElo "2227"]
[PlyCount "93"]
[EventDate "2024.07.31"]
[EventCountry "GBR"]
[SourceTitle "playchess.com"]
[Source "ChessBase"]
[SourceQuality "1"]
[TimeControl "40/5400+30:1800+30"]

1. e4 {[%emt 0:00:06]} Nc6 {[%emt 0:00:07]} 2. d4 {[%emt 0:00:23]} d5 {[%emt 0:00:19]} 3. e5 {[%emt 0:00:44]} Bf5 {[%emt 0:00:22]} 4. c3 {[%emt 0:00:20]} e6 {[%emt 0:00:48]} 5. Bd3 {[%emt 0:00:07]} Nge7 {[%emt 0:00:18]} 6. f4 {[%emt 0:00:26]} Qd7 {[%emt 0:02:30]} 7. Nf3 {[%emt 0:00:11]} f6 {[%emt 0:01:12]} 8. Qe2 {[%emt 0:01:47]} h5 {[%emt 0:01:47]} 9. Nbd2 {[%emt 0:02:58]} Bxd3 {[%emt 0:05:53]} 10. Qxd3 {[%emt 0:00:51]} Nf5 {[%emt 0:01:18]} 11. Nf1 {[%emt 0:02:32]} a6 {[%emt 0:03:40]} 12. Ne3 {[%emt 0:04:27]} Nce7 {[%emt 0:02:35]} 13. a4 {[%emt 0:02:23]} Nxe3 {[%emt 0:11:11]} 14. Bxe3 {[%emt 0:00:15]} Nf5 {[%emt 0:00:22]} 15. O-O {[%emt 0:02:49]} a5 {[%emt 0:05:54]} 16. Bf2 {[%emt 0:03:04]} Rc8 {[%emt 0:04:47]} 17. Rae1 {[%emt 0:01:45]} Kf7 {[%emt 0:02:53]} 18. g3 {[%emt 0:08:28]} Nh6 {[%emt 0:16:13]} 19. exf6 {[%emt 0:12:02]} gxf6 {[%emt 0:00:06]} 20. Nh4 {[%emt 0:04:43]} Nf5 {[%emt 0:02:29]} 21. Nxf5 {[%emt 0:00:15]} exf5 {[%emt 0:00:04]} 22. Re3 {[%emt 0:01:43]} Bd6 {[%emt 0:02:44]} 23. Rfe1 {[%emt 0:00:31]} c6 {[%emt 0:03:07]} 24. Kh1 {[%emt 0:03:11]} Rce8 {[%emt 0:03:13]} 25. Rxe8 {[%emt 0:00:22]} Rxe8 {[%emt 0:00:04]} 26. Rxe8 {[%emt 0:00:17]} Kxe8 {[%emt 0:04:27]} 27. Qe2+ {[%emt 0:00:09]} Kd8 {[%emt 0:00:33]} 28. Qxh5 {[%emt 0:00:17]} Qe6 {[%emt 0:06:17]} 29. Qf3 {[%emt 0:00:57]} b5 {[%emt 0:02:33]} 30. axb5 {[%emt 0:04:20]} cxb5 {[%emt 0:00:06]} 31. h4 {[%emt 0:02:20]} b4 {[%emt 0:03:38]} 32. cxb4 {[%emt 0:00:15]} Bxb4 {[%emt 0:02:03]} 33. h5 {[%emt 0:00:49]} Bf8 {[%emt 0:02:34]} 34. Qd3 {[%emt 0:03:49]} Ke7 {[%emt 0:05:08]} 35. Qa3+ {[%emt 0:04:59]} Kf7 {[%emt 0:00:19]} 36. Qxa5 {[%emt 0:00:24]} Kg7 {[%emt 0:02:34]} 37. Qe1 {[%emt 0:01:08]} Qxe1+ {[%emt 0:01:35]} 38. Bxe1 {[%emt 0:00:05]} Kh6 {[%emt 0:00:05]} 39. b4 {[%emt 0:07:07]} Kxh5 {[%emt 0:00:07]} 40. b5 {[%emt 0:00:03]} Kg6 {[%emt 0:01:55]} 41. Ba5 {[%emt 0:34:18]} Bd6 {[%emt 0:31:05]} 42. Bb6 {[%emt 0:00:45]} Bb8 {[%emt 0:00:37]} 43. Bc5 {[%emt 0:00:20]} Kh5 {[%emt 0:00:00]} 44. b6 {[%emt 0:00:00]} Kg6 {[%emt 0:00:00]} 45. Kg2 {[%emt 0:00:00]} Kf7 {[%emt 0:00:00]} 46. Kh3 {[%emt 0:00:00]} Ke6 {[%emt 0:00:00]} 47. Kh4 {[%emt 0:00:00]} 1-0

[Event "British Championship 2024"]
[Site "Hull"]
[Date "2024.08.01"]
[Round "6.28"]
[White "Kalavannan, Koby"]
[Black "Madhavan, Sanjith"]
[Result "1-0"]
[Annotator "RC"]
[ECO "A45"]
[WhiteElo "2265"]
[BlackElo "1998"]
[PlyCount "75"]
[EventDate "2024.07.31"]
[EventCountry "GBR"]
[SourceTitle "playchess.com"]
[Source "ChessBase"]
[SourceQuality "1"]
[TimeControl "40/5400+30:1800+30"]

1. d4 {[%emt 0:00:42]} Nf6 {[%emt 0:00:06]} 2. Bg5 {[%emt 0:00:15]} e6 {[%emt 0:00:51]} 3. e4 {[%emt 0:00:15]} h6 {[%emt 0:00:14]} 4. Bxf6 {[%emt 0:00:15]} Qxf6 {[%emt 0:00:09]} 5. c3 {[%emt 0:00:18]} b6 {[%emt 0:01:06]} 6. Bd3 {[%emt 0:07:33]} g6 {[%emt 0:06:24]} 7. e5 {[%emt 0:08:14]} Qd8 {[%emt 0:02:58]} 8. Qc2 {[%emt 0:05:42]} Bg7 {[%emt 0:00:26]} 9. Nd2 {[%emt 0:13:58]} Bb7 {[%emt 0:03:59]} 10. Ne2 {[%emt 0:00:29]} O-O {[%emt 0:02:39]} 11. h4 {[%emt 0:04:55]} d6 {[%emt 0:05:29]} 12. O-O-O {[%emt 0:09:13]} dxe5 {[%emt 0:04:10]} 13. dxe5 {[%emt 0:00:22]} Qe7 {[%emt 0:05:48]} 14. f4 {[%emt 0:05:24]} Nd7 {[%emt 0:02:23]} 15. Be4 {[%emt 0:00:05]} Bxe4 {[%emt 0:01:28]} 16. Nxe4 {[%emt 0:00:57]} Nc5 {[%emt 0:01:51]} 17. Nd4 {[%emt 0:02:02]} Rad8 {[%emt 0:15:05]} 18. Nf2 {[%emt 0:01:51]} a5 {[%emt 0:07:33]} 19. Rde1 {[%emt 0:01:21]} Rd5 {[%emt 0:01:42]} 20. Ng4 {[%emt 0:09:51]} Qd8 {[%emt 0:03:55]} 21. Kb1 {[%emt 0:02:16]} Rxd4 {[%emt 0:09:48]} 22. cxd4 {[%emt 0:00:06]} Qxd4 {[%emt 0:00:04]} 23. Rhf1 {[%emt 0:03:03]} a4 {[%emt 0:02:47]} 24. Rd1 {[%emt 0:01:57]} Qb4 {[%emt 0:00:14]} 25. Rf3 {[%emt 0:01:02]} a3 {[%emt 0:02:03]} 26. b3 {[%emt 0:00:28]} h5 {[%emt 0:01:28]} 27. Nf2 {[%emt 0:00:36]} Na4 {[%emt 0:11:56]} 28. Qd2 {[%emt 0:05:01]} Qb5 {[%emt 0:02:12]} 29. Qd3 {[%emt 0:01:24]} Qxd3+ {[%emt 0:01:55]} 30. Rdxd3 {[%emt 0:00:01]} Nc5 {[%emt 0:00:07]} 31. Rc3 {[%emt 0:01:30]} f6 {[%emt 0:00:28]} 32. b4 {[%emt 0:00:23]} Na6 {[%emt 0:00:00]} 33. Nd3 {[%emt 0:15:31]} c5 {[%emt 0:01:45]} 34. bxc5 {[%emt 0:00:00]} bxc5 {[%emt 0:00:19]} 35. Rxa3 {[%emt 0:00:00]} Nc7 {[%emt 0:02:36]} 36. Nxc5 {[%emt 0:00:00]} fxe5 {[%emt 0:00:21]} 37. Ra7 {[%emt 0:00:00]} Nb5 {[%emt 0:01:22]} 38. Rxg7+ {[%emt 0:00:00]} 1-0